[Event "Titled Tuesday Blitz September 20 Late 2022"]
[White "Aldokhin, Ivan"]
[Black "Vykouk, Jan"]
[WhiteFideId "24115720"]
[BlackFideId "349658"]
[WhiteElo "2243"]
[BlackElo "2352"]
[Result "1/2-1/2"]
[Round "05"]
[TimeControl "180+1"]
[Date "2022.09.20"]
[WhiteClock "0:00:04"]
[BlackClock "0:00:05"]

1. e4 {[%clk 0:02:35]}  c5 {[%clk 0:02:58]} 2. Nf3 {[%clk 0:02:33]}  d6 {[%clk 0:02:58]} 3. d4 {[%clk 0:02:32]}  cxd4 {[%clk 0:02:59]} 4. Nxd4 {[%clk 0:02:33]}  Nf6 {[%clk 0:02:59]} 5. Nc3 {[%clk 0:02:33]}  a6 {[%clk 0:03:00]} 6. Bc4 {[%clk 0:02:33]}  e6 {[%clk 0:03:00]} 7. Bb3 {[%clk 0:02:34]}  Nbd7 {[%clk 0:03:00]} 8. O-O {[%clk 0:02:32]}  Nc5 {[%clk 0:03:01]} 9. f4 {[%clk 0:02:28]}  Qc7 {[%clk 0:03:00]} 10. f5 {[%clk 0:02:21]}  Nxb3 {[%clk 0:02:57]} 11. axb3 {[%clk 0:02:11]}  Be7 {[%clk 0:02:54]} 12. Kh1 {[%clk 0:02:03]}  O-O {[%clk 0:02:53]} 13. Qf3 {[%clk 0:01:58]}  Bd7 {[%clk 0:02:49]} 14. Qh3 {[%clk 0:01:20]}  Qc8 {[%clk 0:02:44]} 15. Qg3 {[%clk 0:01:17]}  Kh8 {[%clk 0:02:43]} 16. Bg5 {[%clk 0:01:08]}  Qc5 {[%clk 0:02:05]} 17. Rad1 {[%clk 0:00:57]}  h6 {[%clk 0:01:59]} 18. Be3 {[%clk 0:00:54]}  Qc8 {[%clk 0:01:47]} 19. fxe6 {[%clk 0:00:37]}  fxe6 {[%clk 0:01:46]} 20. e5 {[%clk 0:00:36]}  dxe5 {[%clk 0:01:42]} 21. Nf3 {[%clk 0:00:25]}  Nh5 {[%clk 0:01:14]} 22. Qg4 {[%clk 0:00:25]}  Nf6 {[%clk 0:01:03]} 23. Qh3 {[%clk 0:00:23]}  Nh7 {[%clk 0:00:35]} 24. Nxe5 {[%clk 0:00:22]}  Rxf1+ {[%clk 0:00:33]} 25. Rxf1 {[%clk 0:00:20]}  Be8 {[%clk 0:00:34]} 26. Bxh6 {[%clk 0:00:17]}  gxh6 {[%clk 0:00:32]} 27. Qxh6 {[%clk 0:00:15]}  Qc5 {[%clk 0:00:26]} 28. Qxe6 {[%clk 0:00:10]}  Bh5 {[%clk 0:00:17]} 29. Ne4 {[%clk 0:00:09]}  Qb5 {[%clk 0:00:12]} 30. c4 {[%clk 0:00:08]}  Qe8 {[%clk 0:00:12]} 31. Nd6 {[%clk 0:00:04]}  Bxd6 {[%clk 0:00:11]} 32. Qxd6 {[%clk 0:00:04]}  Rd8 {[%clk 0:00:11]} 33. Qc5 {[%clk 0:00:04]}  Qe6 {[%clk 0:00:10]} 34. h3 {[%clk 0:00:04]}  Re8 {[%clk 0:00:10]} 35. Nf3 {[%clk 0:00:04]}  Bxf3 {[%clk 0:00:09]} 36. Rxf3 {[%clk 0:00:04]}  Nf6 {[%clk 0:00:09]} 37. Qd4 {[%clk 0:00:04]}  Kg7 {[%clk 0:00:09]} 38. Kh2 {[%clk 0:00:04]}  Qe5+ {[%clk 0:00:09]} 39. Qxe5 {[%clk 0:00:04]}  Rxe5 {[%clk 0:00:10]} 40. Rf4 {[%clk 0:00:04]}  Re3 {[%clk 0:00:10]} 41. g4 {[%clk 0:00:03]}  Rxb3 {[%clk 0:00:10]} 42. g5 {[%clk 0:00:03]}  Rxb2+ {[%clk 0:00:10]} 43. Kg1 {[%clk 0:00:04]}  Nh5 {[%clk 0:00:10]} 44. Rd4 {[%clk 0:00:04]}  Kg6 {[%clk 0:00:10]} 45. h4 {[%clk 0:00:04]}  a5 {[%clk 0:00:09]} 46. Kf1 {[%clk 0:00:04]}  a4 {[%clk 0:00:09]} 47. Rd6+ {[%clk 0:00:02]}  Kf5 {[%clk 0:00:09]} 48. Rd5+ {[%clk 0:00:02]}  Kf4 {[%clk 0:00:09]} 49. Ra5 {[%clk 0:00:03]}  Kf3 {[%clk 0:00:08]} 50. Ke1 {[%clk 0:00:04]}  Rb4 {[%clk 0:00:06]} 51. g6 {[%clk 0:00:04]}  Ng7 {[%clk 0:00:06]} 52. h5 {[%clk 0:00:03]}  Ke3 {[%clk 0:00:06]} 53. Kd1 {[%clk 0:00:03]}  Kd3 {[%clk 0:00:06]} 54. Kc1 {[%clk 0:00:03]}  Kc3 {[%clk 0:00:06]} 55. Kd1 {[%clk 0:00:04]}  Nxh5 {[%clk 0:00:05]} 56. Rxh5 {[%clk 0:00:02]}  Rxc4 {[%clk 0:00:05]} 57. Rh3+ {[%clk 0:00:02]}  Kb4 {[%clk 0:00:06]} 58. Rg3 {[%clk 0:00:03]}  Rc8 {[%clk 0:00:05]} 59. g7 {[%clk 0:00:04]}  Rg8 {[%clk 0:00:06]} 60. Kc2 {[%clk 0:00:04]}  b5 {[%clk 0:00:07]} 61. Kb2 {[%clk 0:00:04]}  Ka5 {[%clk 0:00:07]} 62. Rg5 {[%clk 0:00:04]}  Kb6 {[%clk 0:00:04]} 63. Kc3 {[%clk 0:00:04]}  Kc6 {[%clk 0:00:04]} 64. Kb4 {[%clk 0:00:04]}  Kd6 {[%clk 0:00:04]} 65. Kxb5 {[%clk 0:00:05]}  Ke6 {[%clk 0:00:03]} 66. Kxa4 {[%clk 0:00:05]}  Kf6 {[%clk 0:00:04]} 67. Rg2 {[%clk 0:00:05]}  Rxg7 {[%clk 0:00:04]} 68. Rxg7 {[%clk 0:00:04]}  Kxg7 {[%clk 0:00:05]} 1/2-1/2


[Site "https://www.chess.com"]

[Event "Titled Tuesday Blitz September 20 Late 2022"]
[White "Bluebaum, Matthias"]
[Black "Riehle, Marco"]
[WhiteFideId "24651516"]
[BlackFideId "12904392"]
[WhiteElo "2633"]
[BlackElo "2462"]
[Result "0-1"]
[Round "05"]
[TimeControl "180+1"]
[Date "2022.09.20"]
[WhiteClock "0:00:08"]
[BlackClock "0:00:18"]

1. d4 {[%clk 0:03:00]}  d5 {[%clk 0:02:59]} 2. c4 {[%clk 0:03:00]}  e6 {[%clk 0:03:00]} 3. Nc3 {[%clk 0:03:00]}  c5 {[%clk 0:03:00]} 4. cxd5 {[%clk 0:03:00]}  cxd4 {[%clk 0:02:59]} 5. Qa4+ {[%clk 0:03:00]}  Bd7 {[%clk 0:03:00]} 6. Qxd4 {[%clk 0:03:01]}  exd5 {[%clk 0:03:01]} 7. Qxd5 {[%clk 0:03:02]}  Nf6 {[%clk 0:03:01]} 8. Qd1 {[%clk 0:03:02]}  Nc6 {[%clk 0:03:01]} 9. Nf3 {[%clk 0:03:03]}  Bc5 {[%clk 0:02:59]} 10. e3 {[%clk 0:03:03]}  Qe7 {[%clk 0:02:59]} 11. Be2 {[%clk 0:03:03]}  O-O-O {[%clk 0:02:59]} 12. O-O {[%clk 0:03:04]}  g5 {[%clk 0:02:59]} 13. b4 {[%clk 0:03:01]}  g4 {[%clk 0:02:54]} 14. bxc5 {[%clk 0:02:48]}  gxf3 {[%clk 0:02:53]} 15. Bxf3 {[%clk 0:02:49]}  Ne5 {[%clk 0:02:54]} 16. Qe2 {[%clk 0:01:53]}  Rhg8 {[%clk 0:02:48]} 17. Bb2 {[%clk 0:01:29]}  Nxf3+ {[%clk 0:02:41]} 18. Qxf3 {[%clk 0:01:30]}  Bc6 {[%clk 0:02:32]} 19. Qf5+ {[%clk 0:01:31]}  Kb8 {[%clk 0:02:32]} 20. Qf4+ {[%clk 0:01:31]}  Ka8 {[%clk 0:02:31]} 21. f3 {[%clk 0:01:32]}  Nh5 {[%clk 0:02:26]} 22. Qh6 {[%clk 0:01:25]}  Qh4 {[%clk 0:02:20]} 23. Rf2 {[%clk 0:01:04]}  Rg6 {[%clk 0:01:58]} 24. Qxh7 {[%clk 0:01:03]}  Bxf3 {[%clk 0:01:52]} 25. Rxf3 {[%clk 0:00:59]}  Rxg2+ {[%clk 0:01:39]} 26. Kxg2 {[%clk 0:01:00]}  Nf4+ {[%clk 0:01:26]} 27. Rxf4 {[%clk 0:00:50]}  Rd2+ {[%clk 0:01:19]} 28. Kf3 {[%clk 0:00:16]}  Qxh7 {[%clk 0:01:18]} 29. Rd1 {[%clk 0:00:10]}  Qh5+ {[%clk 0:01:02]} 30. Ke4 {[%clk 0:00:11]}  Qg6+ {[%clk 0:00:48]} 31. Rf5 {[%clk 0:00:11]}  Qg4+ {[%clk 0:00:42]} 32. Rf4 {[%clk 0:00:11]}  Qg2+ {[%clk 0:00:38]} 33. Ke5 {[%clk 0:00:07]}  Qg7+ {[%clk 0:00:35]} 34. Ke4 {[%clk 0:00:06]}  Qg6+ {[%clk 0:00:36]} 35. Rf5 {[%clk 0:00:07]}  Rxd1 {[%clk 0:00:34]} 36. Nxd1 {[%clk 0:00:08]}  Qg4+ {[%clk 0:00:34]} 37. Rf4 {[%clk 0:00:07]}  Qxd1 {[%clk 0:00:34]} 38. Bd4 {[%clk 0:00:07]}  Qc2+ {[%clk 0:00:33]} 39. Ke5 {[%clk 0:00:08]}  Qxh2 {[%clk 0:00:32]} 40. a4 {[%clk 0:00:06]}  Qa2 {[%clk 0:00:31]} 41. Kf6 {[%clk 0:00:04]}  Qxa4 {[%clk 0:00:28]} 42. Kxf7 {[%clk 0:00:04]}  Qd7+ {[%clk 0:00:28]} 43. Kg6 {[%clk 0:00:05]}  Qe8+ {[%clk 0:00:23]} 44. Kg7 {[%clk 0:00:05]}  Qe7+ {[%clk 0:00:23]} 45. Kg6 {[%clk 0:00:06]}  a5 {[%clk 0:00:22]} 46. Rf7 {[%clk 0:00:06]}  Qe6+ {[%clk 0:00:21]} 47. Rf6 {[%clk 0:00:07]}  Qg4+ {[%clk 0:00:21]} 48. Kh6 {[%clk 0:00:07]}  Qh4+ {[%clk 0:00:21]} 49. Kg7 {[%clk 0:00:07]}  a4 {[%clk 0:00:20]} 50. Rf8+ {[%clk 0:00:07]}  Ka7 {[%clk 0:00:20]} 51. c6+ {[%clk 0:00:08]}  Ka6 {[%clk 0:00:21]} 52. Ra8+ {[%clk 0:00:07]}  Kb5 {[%clk 0:00:21]} 53. cxb7 {[%clk 0:00:04]}  Qg3+ {[%clk 0:00:21]} 54. Kh8 {[%clk 0:00:03]}  Qh2+ {[%clk 0:00:20]} 55. Kg8 {[%clk 0:00:02]}  Qg2+ {[%clk 0:00:21]} 56. Kf8 {[%clk 0:00:02]}  Qxb7 {[%clk 0:00:21]} 57. Ra7 {[%clk 0:00:03]}  Qf3+ {[%clk 0:00:19]} 58. Ke7 {[%clk 0:00:03]}  Qe4+ {[%clk 0:00:19]} 59. Kd6 {[%clk 0:00:04]}  Qg6+ {[%clk 0:00:19]} 60. Ke5 {[%clk 0:00:04]}  Qg5+ {[%clk 0:00:19]} 61. Ke4 {[%clk 0:00:05]}  Qg6+ {[%clk 0:00:19]} 62. Kf3 {[%clk 0:00:05]}  Qf5+ {[%clk 0:00:18]} 63. Ke2 {[%clk 0:00:05]}  Qc2+ {[%clk 0:00:18]} 64. Kf3 {[%clk 0:00:06]}  Qc6+ {[%clk 0:00:19]} 65. Ke2 {[%clk 0:00:06]}  Kc4 {[%clk 0:00:19]} 66. Ra5 {[%clk 0:00:04]}  Kb3 {[%clk 0:00:19]} 67. Rc5 {[%clk 0:00:04]}  Qa6+ {[%clk 0:00:19]} 68. Kf3 {[%clk 0:00:04]}  Qb7+ {[%clk 0:00:19]} 69. e4 {[%clk 0:00:04]}  a3 {[%clk 0:00:18]} 70. Rc3+ {[%clk 0:00:04]}  Ka4 {[%clk 0:00:18]} 71. Bc5 {[%clk 0:00:03]}  Qf7+ {[%clk 0:00:17]} 72. Ke3 {[%clk 0:00:03]}  a2 {[%clk 0:00:18]} 73. Ra3+ {[%clk 0:00:03]}  Kb5 {[%clk 0:00:18]} 74. Bd4 {[%clk 0:00:04]}  Qg8 {[%clk 0:00:17]} 75. Be5 {[%clk 0:00:04]}  Kb4 {[%clk 0:00:15]} 76. Bd6+ {[%clk 0:00:03]}  Kb5 {[%clk 0:00:15]} 77. Be5 {[%clk 0:00:04]}  Qe6 {[%clk 0:00:15]} 78. Bd4 {[%clk 0:00:04]}  Qh3+ {[%clk 0:00:16]} 79. Kf4 {[%clk 0:00:05]}  Qxa3 {[%clk 0:00:17]} 80. Ba1 {[%clk 0:00:04]}  Qc1+ {[%clk 0:00:16]} 81. Kf5 {[%clk 0:00:05]}  Qxa1 {[%clk 0:00:17]} 82. e5 {[%clk 0:00:06]}  Qf1+ {[%clk 0:00:17]} 83. Kg6 {[%clk 0:00:07]}  a1=Q {[%clk 0:00:18]} 84. Kh7 {[%clk 0:00:08]}  Qg2 {[%clk 0:00:17]} 85. e6 {[%clk 0:00:08]}  Qah1# {[%clk 0:00:18]} 0-1


[Site "https://www.chess.com"]

[Event "Titled Tuesday Blitz September 20 Late 2022"]
[White "Bortnyk, Mykola"]
[Black "Nasuta, Grzegorz"]
[WhiteFideId "14120836"]
[BlackFideId "1141686"]
[WhiteElo "2582"]
[BlackElo "2354"]
[Result "1-0"]
[Round "05"]
[TimeControl "180+1"]
[Date "2022.09.20"]
[WhiteClock "0:01:06"]
[BlackClock "0:00:19"]

1. e4 {[%clk 0:03:00]}  e5 {[%clk 0:02:56]} 2. Bc4 {[%clk 0:02:59]}  Nf6 {[%clk 0:02:56]} 3. d3 {[%clk 0:02:59]}  Nc6 {[%clk 0:02:55]} 4. a3 {[%clk 0:02:58]}  d5 {[%clk 0:02:51]} 5. exd5 {[%clk 0:02:55]}  Nxd5 {[%clk 0:02:51]} 6. Nc3 {[%clk 0:02:49]}  Nxc3 {[%clk 0:02:43]} 7. bxc3 {[%clk 0:02:49]}  Bd6 {[%clk 0:02:42]} 8. Ne2 {[%clk 0:02:42]}  O-O {[%clk 0:02:42]} 9. O-O {[%clk 0:02:42]}  Qf6 {[%clk 0:02:31]} 10. Ng3 {[%clk 0:02:41]}  Be6 {[%clk 0:02:27]} 11. Ne4 {[%clk 0:02:32]}  Qe7 {[%clk 0:02:27]} 12. Bxe6 {[%clk 0:02:28]}  Qxe6 {[%clk 0:02:27]} 13. Rb1 {[%clk 0:02:27]}  b6 {[%clk 0:02:23]} 14. f4 {[%clk 0:02:25]}  exf4 {[%clk 0:02:20]} 15. Bxf4 {[%clk 0:02:26]}  Bxf4 {[%clk 0:02:20]} 16. Rxf4 {[%clk 0:02:27]}  f5 {[%clk 0:02:20]} 17. Ng3 {[%clk 0:02:15]}  Rae8 {[%clk 0:02:17]} 18. Qf3 {[%clk 0:02:08]}  g6 {[%clk 0:02:17]} 19. d4 {[%clk 0:02:02]}  Na5 {[%clk 0:02:14]} 20. Nf1 {[%clk 0:01:50]}  Nc4 {[%clk 0:02:13]} 21. d5 {[%clk 0:01:50]}  Ne5 {[%clk 0:01:09]} 22. dxe6 {[%clk 0:01:48]}  Nxf3+ {[%clk 0:01:09]} 23. Rxf3 {[%clk 0:01:46]}  Rxe6 {[%clk 0:01:10]} 24. Rd1 {[%clk 0:01:44]}  Rf7 {[%clk 0:01:07]} 25. Re3 {[%clk 0:01:44]}  Rc6 {[%clk 0:01:07]} 26. Kf2 {[%clk 0:01:39]}  Kg7 {[%clk 0:01:07]} 27. Rd4 {[%clk 0:01:35]}  a5 {[%clk 0:01:07]} 28. Nd2 {[%clk 0:01:35]}  f4 {[%clk 0:01:01]} 29. Red3 {[%clk 0:01:33]}  Rf5 {[%clk 0:01:00]} 30. Kf3 {[%clk 0:01:26]}  g5 {[%clk 0:00:52]} 31. Ne4 {[%clk 0:01:22]}  h5 {[%clk 0:00:46]} 32. h3 {[%clk 0:01:23]}  Re5 {[%clk 0:00:41]} 33. Rd5 {[%clk 0:01:22]}  Rxd5 {[%clk 0:00:24]} 34. Rxd5 {[%clk 0:01:23]}  Rc4 {[%clk 0:00:24]} 35. Rxg5+ {[%clk 0:01:22]}  Kf7 {[%clk 0:00:25]} 36. Rf5+ {[%clk 0:01:15]}  Ke6 {[%clk 0:00:23]} 37. Rxf4 {[%clk 0:01:15]}  Ke5 {[%clk 0:00:19]} 38. g4 {[%clk 0:01:09]}  hxg4+ {[%clk 0:00:18]} 39. hxg4 {[%clk 0:01:10]}  Ra4 {[%clk 0:00:18]} 40. g5 {[%clk 0:01:08]}  Rxa3 {[%clk 0:00:18]} 41. g6 {[%clk 0:01:08]}  Ra1 {[%clk 0:00:19]} 42. g7 {[%clk 0:01:06]}  Rf1+ {[%clk 0:00:19]} 43. Nf2 {[%clk 0:01:06]} 1-0


[Site "https://www.chess.com"]

[Event "Titled Tuesday Blitz September 20 Late 2022"]
[White "Ilkhomi, Jaloliddin"]
[Black "Jaracz, Pawel"]
[WhiteFideId "14700948"]
[BlackFideId "1102222"]
[WhiteElo "1440"]
[BlackElo "2459"]
[Result "0-1"]
[Round "05"]
[TimeControl "180+1"]
[Date "2022.09.20"]
[WhiteClock "0:01:57"]
[BlackClock "0:02:32"]

1. d4 {[%clk 0:03:00]}  Nf6 {[%clk 0:02:59]} 2. Nf3 {[%clk 0:03:00]}  d5 {[%clk 0:02:59]} 3. Bf4 {[%clk 0:03:00]}  c5 {[%clk 0:02:59]} 4. e3 {[%clk 0:03:01]}  Nc6 {[%clk 0:02:58]} 5. c3 {[%clk 0:02:55]}  e6 {[%clk 0:02:59]} 6. Nbd2 {[%clk 0:02:54]}  Be7 {[%clk 0:02:56]} 7. Bd3 {[%clk 0:02:53]}  Nh5 {[%clk 0:02:56]} 8. Be5 {[%clk 0:02:44]}  O-O {[%clk 0:02:55]} 9. h3 {[%clk 0:02:40]}  Nxe5 {[%clk 0:02:53]} 10. Nxe5 {[%clk 0:02:41]}  g6 {[%clk 0:02:53]} 11. O-O {[%clk 0:02:38]}  f6 {[%clk 0:02:52]} 12. Nef3 {[%clk 0:02:25]}  Bd7 {[%clk 0:02:52]} 13. Qe2 {[%clk 0:02:25]}  Bc6 {[%clk 0:02:48]} 14. dxc5 {[%clk 0:02:23]}  Bxc5 {[%clk 0:02:48]} 15. e4 {[%clk 0:02:24]}  Nf4 {[%clk 0:02:48]} 16. Qd1 {[%clk 0:02:18]}  Nxd3 {[%clk 0:02:47]} 17. exd5 {[%clk 0:02:17]}  Qxd5 {[%clk 0:02:44]} 18. c4 {[%clk 0:02:14]}  Qf5 {[%clk 0:02:42]} 19. Nb3 {[%clk 0:02:10]}  Rad8 {[%clk 0:02:41]} 20. Qe2 {[%clk 0:02:09]}  Nf4 {[%clk 0:02:40]} 21. Qe1 {[%clk 0:02:06]}  Nxh3+ {[%clk 0:02:39]} 22. gxh3 {[%clk 0:02:03]}  Qxf3 {[%clk 0:02:39]} 23. Qxe6+ {[%clk 0:02:01]}  Kg7 {[%clk 0:02:38]} 24. Qxc6 {[%clk 0:01:57]}  Qxc6 {[%clk 0:02:32]} 0-1


[Site "https://www.chess.com"]

[Event "Titled Tuesday Blitz September 20 Late 2022"]
[White "Kamsky, Gata"]
[Black "Rosen, Eric"]
[WhiteFideId "2000024"]
[BlackFideId "2032562"]
[WhiteElo "2666"]
[BlackElo "2362"]
[Result "1-0"]
[Round "05"]
[TimeControl "180+1"]
[Date "2022.09.20"]
[WhiteClock "0:00:21"]
[BlackClock "0:00:01"]

1. e4 {[%clk 0:03:00]}  c5 {[%clk 0:02:52]} 2. Nc3 {[%clk 0:02:56]}  e6 {[%clk 0:02:49]} 3. f4 {[%clk 0:02:35]}  a6 {[%clk 0:02:48]} 4. Nf3 {[%clk 0:02:33]}  Nc6 {[%clk 0:02:47]} 5. g3 {[%clk 0:02:32]}  b5 {[%clk 0:02:47]} 6. Bg2 {[%clk 0:02:31]}  b4 {[%clk 0:02:45]} 7. Ne2 {[%clk 0:02:30]}  Nge7 {[%clk 0:02:43]} 8. O-O {[%clk 0:02:28]}  d5 {[%clk 0:02:44]} 9. d3 {[%clk 0:02:28]}  g6 {[%clk 0:02:35]} 10. Be3 {[%clk 0:02:27]}  d4 {[%clk 0:02:17]} 11. Bc1 {[%clk 0:02:23]}  Bg7 {[%clk 0:02:17]} 12. g4 {[%clk 0:02:15]}  Qb6 {[%clk 0:01:53]} 13. Nd2 {[%clk 0:02:08]}  Na5 {[%clk 0:01:31]} 14. f5 {[%clk 0:02:07]}  gxf5 {[%clk 0:01:25]} 15. exf5 {[%clk 0:02:07]}  Nd5 {[%clk 0:01:17]} 16. Nc4 {[%clk 0:01:58]}  Qd8 {[%clk 0:01:02]} 17. Nxa5 {[%clk 0:01:52]}  Qxa5 {[%clk 0:01:02]} 18. Nf4 {[%clk 0:01:48]}  Qd8 {[%clk 0:00:45]} 19. fxe6 {[%clk 0:01:29]}  Bxe6 {[%clk 0:00:38]} 20. Nxe6 {[%clk 0:01:21]}  fxe6 {[%clk 0:00:39]} 21. g5 {[%clk 0:01:21]}  Rf8 {[%clk 0:00:06]} 22. Qh5+ {[%clk 0:01:17]}  Kd7 {[%clk 0:00:06]} 23. Bd2 {[%clk 0:01:10]}  Qe7 {[%clk 0:00:07]} 24. Qxh7 {[%clk 0:01:05]}  Rxf1+ {[%clk 0:00:03]} 25. Rxf1 {[%clk 0:01:03]}  Rf8 {[%clk 0:00:04]} 26. Rxf8 {[%clk 0:01:00]}  Qxf8 {[%clk 0:00:03]} 27. Qe4 {[%clk 0:00:52]}  Kd6 {[%clk 0:00:02]} 28. h4 {[%clk 0:00:45]}  Be5 {[%clk 0:00:03]} 29. h5 {[%clk 0:00:44]}  a5 {[%clk 0:00:03]} 30. h6 {[%clk 0:00:43]}  a4 {[%clk 0:00:03]} 31. g6 {[%clk 0:00:42]}  Qf6 {[%clk 0:00:03]} 32. g7 {[%clk 0:00:40]}  Qf7 {[%clk 0:00:02]} 33. Qg4 {[%clk 0:00:35]}  Ne7 {[%clk 0:00:02]} 34. b3 {[%clk 0:00:33]}  axb3 {[%clk 0:00:01]} 35. axb3 {[%clk 0:00:33]}  Ng8 {[%clk 0:00:02]} 36. h7 {[%clk 0:00:29]}  Bxg7 {[%clk 0:00:03]} 37. hxg8=Q {[%clk 0:00:27]}  Qxg8 {[%clk 0:00:04]} 38. Bh6 {[%clk 0:00:26]}  Qf7 {[%clk 0:00:03]} 39. Qxg7 {[%clk 0:00:24]}  Qf5 {[%clk 0:00:02]} 40. Qf8+ {[%clk 0:00:23]}  Ke5 {[%clk 0:00:02]} 41. Qxc5+ {[%clk 0:00:22]}  Kf6 {[%clk 0:00:02]} 42. Qxd4+ {[%clk 0:00:22]}  Kg6 {[%clk 0:00:01]} 43. Be4 {[%clk 0:00:21]} 1-0


[Site "https://www.chess.com"]

[Event "Titled Tuesday Blitz September 20 Late 2022"]
[White "Khlebovich, Alexander"]
[Black "Barria Zuniga, Daniel"]
[WhiteFideId "4169123"]
[BlackFideId "3400816"]
[WhiteElo "2355"]
[BlackElo "2414"]
[Result "1-0"]
[Round "05"]
[TimeControl "180+1"]
[Date "2022.09.20"]
[WhiteClock "0:00:47"]
[BlackClock "0:00:01"]

1. d4 {[%clk 0:03:00]}  d5 {[%clk 0:02:53]} 2. c4 {[%clk 0:03:01]}  e6 {[%clk 0:02:54]} 3. Nf3 {[%clk 0:03:01]}  Nf6 {[%clk 0:02:54]} 4. g3 {[%clk 0:03:02]}  Be7 {[%clk 0:02:53]} 5. Bg2 {[%clk 0:03:03]}  O-O {[%clk 0:02:54]} 6. O-O {[%clk 0:03:03]}  dxc4 {[%clk 0:02:55]} 7. Ne5 {[%clk 0:03:03]}  Nd5 {[%clk 0:02:54]} 8. Nxc4 {[%clk 0:03:00]}  c6 {[%clk 0:02:48]} 9. e4 {[%clk 0:02:55]}  Nf6 {[%clk 0:02:44]} 10. Nc3 {[%clk 0:02:53]}  a5 {[%clk 0:02:34]} 11. d5 {[%clk 0:02:40]}  exd5 {[%clk 0:02:33]} 12. exd5 {[%clk 0:02:41]}  cxd5 {[%clk 0:02:33]} 13. Nxd5 {[%clk 0:02:41]}  Nxd5 {[%clk 0:02:33]} 14. Qxd5 {[%clk 0:02:39]}  Nc6 {[%clk 0:02:32]} 15. Qxd8 {[%clk 0:02:33]}  Rxd8 {[%clk 0:02:31]} 16. Nb6 {[%clk 0:02:34]}  Ra6 {[%clk 0:02:30]} 17. Nxc8 {[%clk 0:02:33]}  Rxc8 {[%clk 0:02:29]} 18. Be3 {[%clk 0:02:32]}  Bf6 {[%clk 0:02:26]} 19. Rac1 {[%clk 0:02:21]}  a4 {[%clk 0:02:13]} 20. Rfd1 {[%clk 0:02:20]}  Bxb2 {[%clk 0:02:10]} 21. Rc2 {[%clk 0:02:13]}  a3 {[%clk 0:02:09]} 22. Rd7 {[%clk 0:02:11]}  Rb8 {[%clk 0:01:25]} 23. Bf4 {[%clk 0:02:06]}  Be5 {[%clk 0:01:16]} 24. Bxc6 {[%clk 0:01:48]}  Bxf4 {[%clk 0:01:10]} 25. Bxb7 {[%clk 0:01:47]}  Rg6 {[%clk 0:00:57]} 26. Bd5 {[%clk 0:01:28]}  Rd6 {[%clk 0:00:25]} 27. Rb7 {[%clk 0:00:53]}  Rf8 {[%clk 0:00:25]} 28. Bb3 {[%clk 0:00:53]}  Be5 {[%clk 0:00:24]} 29. Rxf7 {[%clk 0:00:48]}  Rxf7 {[%clk 0:00:01]} 30. Rc8+ {[%clk 0:00:47]} 1-0


[Site "https://www.chess.com"]

[Event "Titled Tuesday Blitz September 20 Late 2022"]
[White "Koellner, Ruben Gideon"]
[Black "Iliaguev, Nisim"]
[WhiteFideId "12993093"]
[BlackFideId "2817276"]
[WhiteElo "2286"]
[BlackElo "2107"]
[Result "0-1"]
[Round "05"]
[TimeControl "180+1"]
[Date "2022.09.20"]
[WhiteClock "0:00:01"]
[BlackClock "0:00:37"]

1. d4 {[%clk 0:03:00]}  Nf6 {[%clk 0:03:00]} 2. Bg5 {[%clk 0:02:04]}  e6 {[%clk 0:02:58]} 3. Nd2 {[%clk 0:02:01]}  h6 {[%clk 0:02:58]} 4. Bh4 {[%clk 0:02:01]}  d5 {[%clk 0:02:58]} 5. e3 {[%clk 0:02:00]}  Be7 {[%clk 0:02:57]} 6. Bd3 {[%clk 0:02:00]}  b6 {[%clk 0:02:57]} 7. c3 {[%clk 0:02:00]}  O-O {[%clk 0:02:55]} 8. Qe2 {[%clk 0:01:58]}  c5 {[%clk 0:02:54]} 9. Bxf6 {[%clk 0:01:54]}  Bxf6 {[%clk 0:02:54]} 10. f4 {[%clk 0:01:55]}  a5 {[%clk 0:02:54]} 11. a4 {[%clk 0:01:54]}  Ba6 {[%clk 0:02:54]} 12. Ngf3 {[%clk 0:01:54]}  Bxd3 {[%clk 0:02:54]} 13. Qxd3 {[%clk 0:01:55]}  Nc6 {[%clk 0:02:54]} 14. O-O {[%clk 0:01:53]}  Qc8 {[%clk 0:02:51]} 15. Ne5 {[%clk 0:01:53]}  Bxe5 {[%clk 0:02:50]} 16. fxe5 {[%clk 0:01:54]}  Qa6 {[%clk 0:02:50]} 17. Qxa6 {[%clk 0:01:52]}  Rxa6 {[%clk 0:02:51]} 18. Ra2 {[%clk 0:01:49]}  Rb8 {[%clk 0:02:50]} 19. Rfa1 {[%clk 0:01:41]}  Ra7 {[%clk 0:02:48]} 20. Kf2 {[%clk 0:01:40]}  Rab7 {[%clk 0:02:47]} 21. Ke2 {[%clk 0:01:38]}  c4 {[%clk 0:02:40]} 22. b3 {[%clk 0:01:32]}  cxb3 {[%clk 0:02:34]} 23. Nxb3 {[%clk 0:01:33]}  Rc7 {[%clk 0:02:32]} 24. Nd2 {[%clk 0:01:26]}  Ne7 {[%clk 0:02:29]} 25. Kd3 {[%clk 0:01:26]}  Rc6 {[%clk 0:02:28]} 26. Rb1 {[%clk 0:01:24]}  Rb7 {[%clk 0:02:28]} 27. Rb5 {[%clk 0:01:23]}  Rbc7 {[%clk 0:02:27]} 28. Ra3 {[%clk 0:01:23]}  Nc8 {[%clk 0:02:26]} 29. Rab3 {[%clk 0:01:22]}  Kf8 {[%clk 0:02:26]} 30. e4 {[%clk 0:01:21]}  dxe4+ {[%clk 0:02:19]} 31. Nxe4 {[%clk 0:01:22]}  Ke7 {[%clk 0:02:19]} 32. Nd6 {[%clk 0:01:13]}  Nxd6 {[%clk 0:01:54]} 33. exd6+ {[%clk 0:01:14]}  Rxd6 {[%clk 0:01:13]} 34. Rxb6 {[%clk 0:01:15]}  Rdd7 {[%clk 0:00:52]} 35. Ra6 {[%clk 0:01:08]}  e5 {[%clk 0:00:52]} 36. Rxa5 {[%clk 0:01:01]}  exd4 {[%clk 0:00:52]} 37. cxd4 {[%clk 0:01:02]}  Rc1 {[%clk 0:00:53]} 38. Re5+ {[%clk 0:00:59]}  Kd8 {[%clk 0:00:48]} 39. Rb4 {[%clk 0:00:24]}  Rd1+ {[%clk 0:00:48]} 40. Ke3 {[%clk 0:00:23]}  f6 {[%clk 0:00:47]} 41. Reb5 {[%clk 0:00:19]}  Ke7 {[%clk 0:00:45]} 42. Rb7 {[%clk 0:00:17]}  Rxd4 {[%clk 0:00:41]} 43. Rxd7+ {[%clk 0:00:14]}  Rxd7 {[%clk 0:00:42]} 44. a5 {[%clk 0:00:14]}  Ra7 {[%clk 0:00:43]} 45. Ra4 {[%clk 0:00:13]}  Kd6 {[%clk 0:00:42]} 46. Kd4 {[%clk 0:00:08]}  Kc6 {[%clk 0:00:42]} 47. Kc4 {[%clk 0:00:08]}  g6 {[%clk 0:00:37]} 48. Ra2 {[%clk 0:00:07]}  Rc7 {[%clk 0:00:36]} 49. a6 {[%clk 0:00:02]}  Kb6+ {[%clk 0:00:36]} 50. Kd5 {[%clk 0:00:02]}  Ka7 {[%clk 0:00:36]} 51. Ke6 {[%clk 0:00:01]}  f5 {[%clk 0:00:37]} 0-1


[Site "https://www.chess.com"]